Cogmind - Beta 16 @@@ ROGUE MODE // 2025.11.21 @ 15:19:06 Player: sweetandcool Result: Destroyed by 0V-CYX(R) with Subdweller Laser Performance ------------- Evolutions (0) 0 Regions Visited (3) 600 Robots Destroyed (13) 65 Value Destroyed (299) 299 Prototype IDs (2) 40 Alien Tech Used (0) 0 Bonus (0) 0 TOTAL SCORE: 1004 Bonus ------- None Cogmind --------- Core Integrity 0/250 Matter 228/300 Energy 144/160 System Corruption 0% Temperature Cool (6) Movement Core (550) Ox10 Location -10/Subcaves Parts ------- > --- POWER (1) -------- Light Nuclear Core > --- PROPULSION (2) --- (None) > --- UTILITY (2) ------ Large Storage Unit > --- WEAPON (2) ------- Beamcaster Assault Rifle > --- INVENTORY (15) --- Light Treads Light Treads EM Pulse Gun Assault Rifle Assault Rifle Assault Rifle Assault Rifle Assault Rifle Maul Peak State ------------ > --- POWER ------------ Light Nuclear Core > --- PROPULSION ------- (None) > --- UTILITY ---------- Large Storage Unit > --- WEAPON ----------- Beamcaster Assault Rifle > --- INVENTORY -------- Light Treads Light Treads EM Pulse Gun Assault Rifle Assault Rifle Assault Rifle Assault Rifle Assault Rifle Maul [Rating: 11] Favorites ----------- Power Light Ion Engine Engine Light Ion Engine Power Core Light Nuclear Core Propulsion Light Treads Treads Light Treads Utility Large Storage Unit Device Terrain Scanner Storage Large Storage Unit Weapon Light Assault Rifle Energy Gun EM Pulse Gun Ballistic Gun Light Assault Rifle Impact Weapon Maul Build | -11 -10 -10 -10 ------- Run | Yrd Mat Min Sub Slots Evolved . | . . . . Power . | . . . . Propulsion . | . . . . Utility . | . . . . Weapon . | . . . . Parts Attached 13 | 6 1 3 3 Power 3 | 1 . 1 1 Engine 2 | 1 . 1 . Core 1 | . . . 1 Reactor . | . . . . Propulsion 2 | 2 . . . Treads 2 | 2 . . . Leg . | . . . . Wheel . | . . . . Hover . | . . . . Flight . | . . . . Utility 3 | 1 1 1 . Device 1 | . . 1 . Storage 2 | 1 1 . . Processor . | . . . . Hackware . | . . . . Protection . | . . . . Artifact . | . . . . Weapon 5 | 2 . 1 2 Energy Gun 2 | 1 . . 1 Energy Cannon . | . . . . Ballistic Gun 2 | 1 . . 1 Ballistic Cannon . | . . . . Launcher . | . . . . Special Weapon . | . . . . Impact Weapon 1 | . . 1 . Slashing Weapon . | . . . . Piercing Weapon . | . . . . Special Melee Weapon . | . . . . Unidentified Prototypes . | . . . . Parts Lost 6 | . 1 . 5 Power 2 | . 1 . 1 Propulsion 2 | . . . 2 Utility 1 | . . . 1 Weapon 1 | . . . 1 Highest Loss Streak 5 | . 1 . 5 To Critical Strikes . | . . . . Average Backups 9 | 1 7 9 10 Power 1 | 1 1 1 . Propulsion . | . . . 2 Utility . | . . . . Weapon 6 | . 6 7 7 Tool/Special . | . . . . Unused Backups 7 | . . . 7 Power . | . . . . Propulsion 2 | . . . 2 Utility . | . . . . Weapon 5 | . . . 5 Tool/Special . | . . . . Average Slot Usage (%) 90 | . 91 91 71 Engine 6 | . 7 6 5 Treads 27 | . 28 28 12 Device 4 | . . 5 5 Storage 23 | . 26 22 14 Energy Gun 3 | . 14 . . Ballistic Gun 14 | . 14 14 14 Impact Weapon 10 | . . 13 14 Peak Build Rating 11 | 6 8 9 11 Average Rating 7 | 4 7 8 7 On Entrance 5 | . 6 7 9 Avg Prop Armor Cover (%) . | . . . . Naked Turns . | . . . . Heaviest Build 32 | 11 31 32 28 Greatest Support 40 | 40 40 40 40 Greatest Overweight (x) . | . . . . Average Overweight (x) . | . . . . Largest Inventory Capacity 15 | 8 15 15 15 Average Capacity 14 | 7 14 15 15 Most Carried 11 | 3 9 11 11 Average Carried 9 | 1 7 9 10 Final Capacity 15 | 8 15 15 15 Final Carried 11 | 1 9 11 9 Class Distribution -------------------- 100% | Mutant Dominant Class ---------------- Mutant | -10/Materials Mutant | -10/Mines Mutant | -10/Subcaves Resources | -11 -10 -10 -10 ----------- Run | Yrd Mat Min Sub Matter Collected 322 | 265 27 30 . Remotely . | . . . . Salvage Created 489 | 95 230 122 42 Parts 18 | . 12 4 2 Haulers Intercepted . | . . . . Recyclers Shooed . | . . . . Parts Field Recycled . | . . . . Retrieved Matter . | . . . . Parts Self-Destructed . | . . . . Prevented . | . . . . Parts Restored . | . . . . Kills | -11 -10 -10 -10 ------- Run | Yrd Mat Min Sub Combat Hostiles Destroyed 7 | . 5 1 1 Guns 6 | . 5 . 1 Classes Destroyed 6 | 1 1 3 1 Worker 1 | . . 1 . Builder 3 | . . 3 . Tunneler 1 | . . 1 . Recycler 1 | 1 . . . Grunt 6 | . 5 1 . Subdweller 1 | . . . 1 Best Kill Streak 2 | 1 2 2 1 Combat Bots Only 2 | . 2 1 1 Max Kills in Single Turn 1 | 1 1 1 1 Gunslinging . | . . . . Exploded . | . . . . Melee . | . . . . Uniques/NPCs Destroyed . | . . . . Combat | -11 -10 -10 -10 -------- Run | Yrd Mat Min Sub Hostile Shots Fired 77 | . 26 7 44 Missed 20 | . 5 2 13 Hits 57 | . 21 5 31 Projectile 57 | . 21 5 31 Critical Strikes 2 | . 2 . . Damage Taken 963 | . 268 78 617 Core 253 | . 97 17 139 Absorbed by Shields . | . . . . Core Remaining (%) 100 | 100 . . . Volleys Fired 61 | 5 22 . 34 Largest 2 | 2 2 . 1 Hottest 60 | 60 60 . 20 Shots Fired 80 | 6 40 . 34 Gun 80 | 6 40 . 34 Cannon . | . . . . Launcher . | . . . . Special . | . . . . Kinetic 61 | 5 22 . 34 Thermal . | . . . . Explosive . | . . . . Electromagnetic 19 | 1 18 . . Robot Hit Streak 25 | 2 5 . 25 Robot Miss Streak 5 | 1 5 . 2 Penetration Max . | . . . . Secondary Targets 1 | . 1 . . Max Gunslinging Chain 1 | . 1 . . Shots Hit Robots 66 | 4 22 9 31 Core Hits 17 | 2 11 1 3 Critical Kills . | . . . . Critical Parts Destroyed 4 | . . 4 . Critical Strikes 4 | . . 4 . Smash 4 | . . 4 . Melee Attacks 13 | . . 13 . Impact 13 | . . 13 . Slashing . | . . . . Piercing . | . . . . Sneak Attacks 5 | . . 5 . Combat Hostiles . | . . . . Follow-up Attacks . | . . . . Damage Inflicted 951 | 72 250 536 93 Guns 378 | 35 250 . 93 Cannons . | . . . . Explosions 37 | 37 . . . Melee 536 | . . 536 . Ramming . | . . . . Kinetic 217 | 22 102 . 93 Thermal 37 | 37 . . . Explosive . | . . . . Electromagnetic 161 | 13 148 . . Impact 536 | . . 536 . Slashing . | . . . . Piercing . | . . . . Highest Corruption . | . . . . Average Corruption . | . . . . Corruption Purged . | . . . . Corruption Blocked . | . . . . Overload Shots . | . . . . Overflow Damage 321 | . . 321 . Projectiles . | . . . . Explosions . | . . . . Melee 321 | . . 321 . Knockbacks 3 | . . 3 . Impact 3 | . . 3 . Kinetic . | . . . . Secondary . | . . . . Self-Inflicted Damage . | . . . . Shots . | . . . . Rammed . | . . . . Targets Rammed . | . . . . Kicked . | . . . . Crushed . | . . . . Highest Temperature 131 | 20 131 . . Average Temperature 52 | 10 54 . . Received Heat Transfer 408 | . 180 42 186 Siege Activations . | . . . . Martial Activations . | . . . . Shielding Activations . | . . . . Robots Disrupted . | . . . . Combat Hostiles . | . . . . Robots Corrupted 4 | . . 4 . Combat Hostiles 1 | . . 1 . Parts Fried 3 | . . 3 . Impact Corruptions 11 | . . 11 . Robots Melted . | . . . . Combat Hostiles . | . . . . Parts Melted . | . . . . Heat Transferred 50 | 50 . . . Parts Sabotaged . | . . . . Parts Stolen . | . . . . Parts Stripped . | . . . . Power Chain Reactions 1 | 1 . . . Alert | -11 -10 -10 -10 ------- Run | Yrd Mat Min Sub Maximum Alert Level . | . . . . Low Security (%) 100 | 100 100 100 . Level 1 . | . . . . Level 2 . | . . . . Level 3 . | . . . . Level 4 . | . . . . Level 5 . | . . . . High Security . | . . . . Max Security . | . . . . Peak Influence 70 | 5 70 45 . Initial 7 | . . 7 . Average 7 | . 20 3 . Influence Increases 216 | 5 138 73 . Destroy 0b10 Robot/C 120 | . 100 20 . Destroy 0b10 Robot/NC 30 | 5 . 25 . Destroy Leader 40 | . 30 10 . Successful Hack 8 | . 8 . . Destroy Structure 3 | . . 3 . Lose Combat Pursuer 15 | . . 15 . Influence Decreases 216 | 5 118 93 . Entered New Map 13 | . . 13 . Time Decay 193 | 5 108 80 . Lost Part 10 | . 10 . . Squads Dispatched 4 | . 4 . . Investigation 3 | . 3 . . Extermination . | . . . . Reinforcement 1 | . 1 . . Assault . | . . . . Garrison . | . . . . Intercept . | . . . . Searches Triggered . | . . . . Construction Impeded . | . . . . Haulers Reinforced . | . . . . Active Scanning Responses . | . . . . Cargo Convoy Interrupts . | . . . . Stealth | -11 -10 -10 -10 --------- Run | Yrd Mat Min Sub Distress Signals . | . . . . Communications Jammed . | . . . . Distress Signals . | . . . . Times Spotted 13 | . 9 2 2 Peak Tracking Total 3 | . 3 2 2 Tactical Retreats 1 | . . 1 . Traps | -11 -10 -10 -10 ------- Run | Yrd Mat Min Sub Traps Triggered 1 | . 1 . . Indirectly . | . . . . Trap Hack Attempts . | . . . . Triggered . | . . . . Disarmed . | . . . . Reprogrammed . | . . . . Reused . | . . . . Traps Extracted . | . . . . Installed . | . . . . Triggered . | . . . . Machines | -11 -10 -10 -10 ---------- Run | Yrd Mat Min Sub Machines Disabled . | . . . . Max in Single Turn . | . . . . Machines Repaired . | . . . . Machines Dismantled . | . . . . Machines Sabotaged . | . . . . Overloaded Fab Kills . | . . . . Hacking | -11 -10 -10 -10 --------- Run | Yrd Mat Min Sub Machines Accessed 3 | . 3 . . Terminals 3 | . 3 . . Fabricators . | . . . . Repair Stations . | . . . . Recycling Units . | . . . . Scanalyzers . | . . . . Garrison Access . | . . . . Total Hacks 9 | . 9 . . Successful 2 | . 2 . . Failed 7 | . 7 . . Catastrophic 2 | . 2 . . Database Lockouts . | . . . . Manual 5 | . 5 . . Terminals 9 | . 9 . . Fabricators . | . . . . Repair Stations . | . . . . Recycling Units . | . . . . Scanalyzers . | . . . . Garrison Access . | . . . . Terminal Hacks 2 | . 2 . . Prototype ID Bank 1 | . 1 . . Branch Access Points 1 | . 1 . . Fabricator Hacks . | . . . . Repair Station Hacks . | . . . . Recycling Unit Hacks . | . . . . Scanalyzer . | . . . . Garrison Access Hacks . | . . . . Unauthorized Hacks . | . . . . Terminals . | . . . . Fabricators . | . . . . Repair Stations . | . . . . Recycling Units . | . . . . Scanalyzers . | . . . . Garrison Access . | . . . . Data Cores Recovered . | . . . . Used . | . . . . Hacking Detections 3 | . 3 . . Full Trace Events 1 | . 1 . . Feedback Events . | . . . . Feedback Blocked . | . . . . Robot Schematics Acquired . | . . . . Robots Built . | . . . . Authchips . | . . . . Time . | . . . . Total Robot Build Rating . | . . . . Part Schematics Acquired . | . . . . Parts Built . | . . . . Authchips . | . . . . Time . | . . . . Total Part Build Rating . | . . . . Part Studies Acquired . | . . . . Parts Repaired . | . . . . Time . | . . . . Parts Recycled . | . . . . Recycled Matter . | . . . . Retrieved Matter . | . . . . Retrieved Components . | . . . . Parts Scanalyzed . | . . . . Part Schematics Acquired . | . . . . Parts Damaged . | . . . . Bothacking | -11 -10 -10 -10 ------------ Run | Yrd Mat Min Sub Used RIF Installer . | . . . . Robots Hacked . | . . . . Non-combat . | . . . . Combat . | . . . . Robot Hacks Applied . | . . . . Relay Couplers Released . | . . . . Fabnet Peak Effective % . | . . . . Robots Rewired . | . . . . Allies Hacked . | . . . . Hacks Repelled . | . . . . Allies | -11 -10 -10 -10 -------- Run | Yrd Mat Min Sub Total Allies 1 | . . 1 . Largest Group 1 | . . 1 . Highest-Rated Group 31 | . . 31 . Highest-Rated Ally 31 | . . 31 . Total Orders . | . . . . Ally Attacks 6 | . . 6 . Total Damage 84 | . . 84 . Kills . | . . . . Allies Corrupted . | . . . . Allies Melted 1 | . . 1 . Intel | -11 -10 -10 -10 ------- Run | Yrd Mat Min Sub Active Infowar (turns) 456 | . . 432 24 Terrain 456 | . . 432 24 Robot Analysis Total . | . . . . Derelict Logs Recovered 2 | . . 2 . Drone Launches . | . . . . Drone Recoveries . | . . . . Exploration | -11 -10 -10 -10 ------------- Run | Yrd Mat Min Sub Turns Passed 1615 | 65 371 1107 72 Spaces Moved 628 | 36 177 412 3 Core 11 | 11 . . . Treads 617 | 25 177 412 3 Legs . | . . . . Wheels . | . . . . Hover . | . . . . Flight . | . . . . Fastest Speed 50 | 50 160 160 160 Average Speed 158 | 126 160 160 160 Slowest Speed 160 | 160 160 160 160 Overloaded Moves . | . . . . Propulsion Burnouts . | . . . . Robots Hopped . | . . . . Potential Cave-ins . | . . . . Cave-ins Triggered . | . . . . Exploration Rate (%) 31 | 4 44 77 1 Regions Visited 3 Branch Regions 2 Pre-discovered Areas . | . . . . Known Exits Taken 1 | . 1 . . Unknown Exits Taken 2 | 1 . 1 . Scrap Searched 1 | . . 1 . Spaces Dug 4 | . . 4 . Terrain Destroyed 5 | 1 . 4 . Melee 4 | . . 4 . Projectile . | . . . . AOE 1 | 1 . . . Terrain Rammed . | . . . . Walls Destroyed . | . . . . Machines Disabled . | . . . . Actions | -11 -10 -10 -10 --------- Run | Yrd Mat Min Sub Total 1151 | 49 229 833 40 Wait 423 | . 21 402 . Move 625 | 35 176 411 3 Hop . | . . . . Pick Up 15 | 3 9 3 . Fast Attach 5 | 4 . 1 . Attach 6 | 2 1 1 2 Detach . | . . . . Swap 2 | . . 1 1 Drop 1 | . . 1 . Fire 61 | 5 22 . 34 Melee 13 | . . 13 . Ram . | . . . . Kick . | . . . . Crush . | . . . . Escape Stasis . | . . . . Rewire . | . . . . Trap . | . . . . Miscellaneous . | . . . . Route ------- -11/Scrapyard -10/Materials (discovered 3 exits: [*Mat] / *Min x2) -10/Mines (discovered 3 exits: [*Mat x2] / [*Sub]) -10/Subcaves History --------- Turn | Location | Event 12 | -11/Scrapyard | Discovered new exit (range 15) 66 | -11/Scrapyard | Entered Materials 67 | -10/Materials | Met a group of wandering Federalists 182 | -10/Materials | Discovered new exit (range 15) 300 | -10/Materials | Build established: Mutant 360 | -10/Materials | Discovered new exit (range 15) 386 | -10/Materials | Identified exit to Mines 437 | -10/Materials | Entered Mines 469 | -10/Mines | Met a Derelict bent on vengeance 555 | -10/Mines | Learned 2 Materials zone layouts 600 | -10/Mines | Discovered new exit (range 11) 657 | -10/Mines | Learned location of 1 exit from Materials 919 | -10/Mines | Escorted by a lone wolf Derelict 1020 | -10/Mines | Discovered new exit (range 14) 1138 | -10/Mines | Discovered new exit (range 3) 1544 | -10/Mines | Entered Subcaves 1546 | -10/Subcaves | Ambushed by Subdwellers from Twisted Machinery 1581 | -10/Subcaves | Core integrity fell below 50% 1611 | -10/Subcaves | Core integrity fell below 20% 1615 | -10/Subcaves | Lost 5 parts (1p2n1u1w) 1616 | -10/Subcaves | Destroyed by 0V-CYX(R) with Subdweller Laser Last Messages --------------- 01341_ U-05 Engineer builds a Wall. 01344_ T-07 Excavator is excavating. 01346_ U-05 Engineer lays Concrete. 01347_ U-05 Engineer builds a Wall. 01351_ U-05 Engineer lays Concrete. 01353_ U-05 Engineer builds a Wall. LOCATION=UNKNOWN AMBIENT_HEAT=-10 GOAL=ESCAPE 01546_ L9-R64(R) emerges from the Twisted Machinery. 01564_ Lgt. Ion Engine destroyed. 01566_ Lgt. Treads destroyed. 01567_ L9-R64(R) destroyed. 01568_ Terrain Scanner destroyed. 01575_ Subatomizers dissect the Disposable Heat Sink. 01576_ Lgt. Treads destroyed. 01579_ HP-5E7(u) builds Twisted Machinery. 01584_ Lgt. Assault Rifle destroyed. 01586_ HP-5E7(u) builds Twisted Machinery. 01602_ Subatomizers dissect the Disposable Heat Sink. Map ----- +----------------------------------------------------+ | ?????????????????????????????????????????????????? | | ?????????????????????????????????????????????????? | | ?????????????????????????????????????????????????? | | ?????????????????????????????????????????????????? | | ?????????????????????????????????????????????????? | | ?????????????????????????????????????????????????? | | ?????????????????????????????????????????????????? | | ?????????????????????????????????????????????????? | | ?????????????????????????????????????????????????? | | ?????????????????????????????????????????????????? | | ?????????????????????????????????????????????????? | | ?????????????????????????????????????????????????? | | ?????????????????????????????????????????????????? | | ?????????????????????????????????????????????????? | | ?????????????????????#???????????????????????????? | | ?????????????????????????????????????????????????? | | ?????????????????????????????????????????????????? | | ?????????????????????????????????????????????????? | | ???????????????????????#?????????????????????????? | | ?????????????????#???????????????????????????????? | | ??????????????#????????????????#?????????????????? | | ?????????????????????????????###??#??#???????????? | | ???????????? ??# ###????##### #####?????????????? | | ???????????????? ### " ###???????????? | | ?????????????????""""" * "" " #???????????? | | ???????????????????#"" @ &%! """u" #???????????? | | ???????????????????#" ##### R ### #???????????? | | ???????????????????????#??###" ##????????????????? | | ?????????????????????????????# #????????????????? | | ?????????????????????????????? ##???? ???????????? | | ???????????????????????????????#?????????????????? | | ?????????????????????????????????????????????????? | | ?????????????????????????????????????????????????? | | ?????????????????????????????????? ??????????????? | | ?????????????????????????????????????????????????? | | ?????????????????????????????????????????????????? | | ?????????????????????????????????????????????????? | | ???????????????????#?????????????????????????????? | | ?????????????????????????????????????????????????? | | ?????????????????????????????????????????????????? | | ?????????????????????????????????????????????????? | | ?????????????????????????????????????????????????? | | ?????????????????????????????????????????????????? | | ?????????????????????????????????????????????????? | | ?????????????????????????????????????????????????? | | ?????????????????????????????????????????????????? | | ?????????????????????????????????????????????????? | | ?????????????????????????????????????????????????? | | ?????????????????????????????????????????????????? | | ?????????????????????????????????????????????????? | +----------------------------------------------------+ Best States ------------- Heat Dissipation 25 Energy Generation 14 Energy Capacity 160 Matter Stores 300 Matter Capacity 300 Sight Range 16 Terrain Scan Range 14 Terrain Scan Density 10 Evasion (%) 50 Recoil Reduction 2 Item Schematics ----------------- None Robot Schematics ------------------ None Fabricated ------------ Nothing Repaired ---------- Nothing Studied --------- None Alien Tech Used ----------------- None Achievements -------------- None Challenges ------------ None Game ------ Seed BehemothAdvancedLegs Manual? 0 Play Time 00:12:46 Cumulative 124.1 hours Start 2025.11.21 @ 15:02:28 End 2025.11.21 @ 15:19:06 Sessions 1 Manual Loads 0 Difficulty Rogue Special Mode None Game No. 90 Rogue 90 Adventurer 0 Explorer 0 Win Type - Total 0 Types 0/0/0/0/0/0/0/0/0/0 Lore% 33 Gallery% 49 Achievement% 35 Wizard Run 0 Options --------- Layout 0 ASCII 0 Keyboard 0 Movement Numpad Keybinds 0 Fullscreen 1 Font 18/SmallcapsGlow Map View 76x50 Zoom Use 0% Tactical HUD 1 Map Filters NONE Filters NONE Steam 1 RUN: 04fe8276-75a9-4999-8211-2fc2502847b8